Cogmind - Beta 15 @@@ ROGUE MODE // 2025.07.25 @ 05:23:36 Player: shapeshifter Result: Destroyed by 8R-K6U(j) with Overtuned Pulse Rifle Performance ------------- Evolutions (1) 500 Regions Visited (4) 800 Robots Destroyed (36) 180 Value Destroyed (875) 875 Prototype IDs (4) 80 Alien Tech Used (0) 0 Bonus (80) 80 TOTAL SCORE: 2515 Bonus ------- Follower Combat Kills 80 Cogmind --------- Core Integrity 0/400 Matter 222/300 Energy 30/100 System Corruption 1% Temperature Danger (450) Movement Core (100) Ox1 Location -9/Recycling Parts ------- > --- POWER (1) -------- (None) > --- PROPULSION (4) --- (None) > --- UTILITY (2) ------ Propulsion Shielding > --- WEAPON (2) ------- Autogun > --- INVENTORY (5) ---- Scrap Engine Seismic Detector Peak State ------------ > --- POWER ------------ Cooled Ion Engine > --- PROPULSION ------- Improved Flight Unit Improved Flight Unit Improved Flight Unit Improved Flight Unit > --- UTILITY ---------- Seismic Detector Propulsion Shielding > --- WEAPON ----------- Spread Laser Advanced Beam Cannon > --- INVENTORY -------- Flight Unit Spread Laser Spread Laser Advanced Beam Cannon Advanced Beam Cannon [Rating: 23] Favorites ----------- Power Light Nuclear Core Engine Ion Engine Power Core Light Nuclear Core Propulsion Improved Flight Unit Treads Light Treads Flight Unit Improved Flight Unit Utility Propulsion Shielding Device Seismic Detector Storage Small Storage Unit Protection Propulsion Shielding Weapon Spread Laser Energy Gun Spread Laser Energy Cannon Advanced Beam Cannon Ballistic Gun Light Assault Rifle Launcher Grenade Launcher Build | -11 -10 -9 -9 -9 ------- Run | Yrd Mat Mat Sto Rec Slots Evolved 2 | . . 2 . . Power . | . . . . . Propulsion 2 | . . 2 . . Utility . | . . . . . Weapon . | . . . . . Parts Attached 39 | 6 16 12 . 5 Power 6 | 1 2 3 . . Engine 4 | 1 2 1 . . Core 2 | . . 2 . . Reactor . | . . . . . Propulsion 10 | 2 2 6 . . Treads 2 | 2 . . . . Leg . | . . . . . Wheel . | . . . . . Hover . | . . . . . Flight 8 | . 2 6 . . Utility 9 | 1 7 . . 1 Device 4 | . 4 . . . Storage 3 | 1 2 . . . Processor . | . . . . . Hackware . | . . . . . Protection 2 | . 1 . . 1 Artifact . | . . . . . Weapon 14 | 2 5 3 . 4 Energy Gun 5 | . 2 1 . 2 Energy Cannon 2 | . . 2 . . Ballistic Gun 6 | 2 3 . . 1 Ballistic Cannon . | . . . . . Launcher 1 | . . . . 1 Special Weapon . | . . . . . Impact Weapon . | . . . . . Slashing Weapon . | . . . . . Piercing Weapon . | . . . . . Special Melee Weapon . | . . . . . Unidentified Prototypes 4 | . 1 3 . . Parts Lost 13 | . 2 1 . 10 Power . | . . . . . Propulsion 4 | . . . . 4 Utility 2 | . 1 . . 1 Weapon 7 | . 1 1 . 5 Highest Loss Streak 10 | . 1 1 . 10 To Critical Strikes . | . . . . . Average Backups 5 | 3 6 4 5 4 Power . | . . . . . Propulsion 1 | 1 2 . . . Utility 1 | . 1 . 1 2 Weapon 2 | . 1 2 3 2 Tool/Special . | . . . . . Unused Backups 16 | . 5 9 . 2 Power . | . . . . . Propulsion 4 | . 2 2 . . Utility 6 | . 2 2 . 2 Weapon 6 | . 1 5 . . Tool/Special . | . . . . . Average Slot Usage (%) 96 | . 96 96 100 88 Engine 7 | . 14 5 . . Core 4 | . . 5 11 9 Treads 8 | . 23 . . . Flight 28 | . 3 42 44 38 Device 10 | . 11 10 11 7 Storage 4 | . 12 . . . Protection 7 | . 1 11 11 12 Energy Gun 7 | . 1 10 11 9 Energy Cannon 4 | . . 6 11 8 Ballistic Gun 11 | . 25 5 . . Peak Build Rating 23 | 6 14 23 19 20 Average Rating 14 | 4 7 19 18 16 On Entrance 11 | . 6 14 19 18 Naked Turns . | . . . . . Heaviest Build 18 | 13 18 17 14 16 Greatest Support 40 | 40 40 20 16 16 Greatest Overweight (x) 3 | . 3 3 . 1 Average Overweight (x) . | . . . . . Largest Inventory Capacity 10 | 8 10 5 5 5 Average Capacity 6 | 7 8 5 5 5 Most Carried 10 | 6 10 5 5 5 Average Carried 5 | 3 6 4 4 4 Final Capacity 8 | 8 5 5 5 5 Final Carried 5 | 5 5 5 5 3 Class Distribution -------------------- 42% | Mutant 41% | Sprinter 16% | Commander-Sprinter Dominant Class ---------------- Mutant | -10/Materials Sprinter | -9/Materials Commander-Sprinter | -9/Storage Commander-Sprinter | -9/Recycling Resources | -11 -10 -9 -9 -9 ----------- Run | Yrd Mat Mat Sto Rec Matter Collected 926 | 284 146 390 36 70 Remotely . | . . . . . Salvage Created 1158 | 104 304 432 169 149 Parts 93 | 4 26 42 8 13 Haulers Intercepted 2 | . . 2 . . Recyclers Shooed . | . . . . . Parts Field Recycled . | . . . . . Retrieved Matter . | . . . . . Parts Self-Destructed . | . . . . . Prevented . | . . . . . Kills | -11 -10 -9 -9 -9 ------- Run | Yrd Mat Mat Sto Rec Combat Hostiles Destroyed 26 | . 11 10 3 2 Guns 21 | . 11 8 . 2 Cannons 5 | . . 2 3 . Classes Destroyed 10 | 2 2 4 . 2 Builder 1 | . . 1 . . Tunneler 1 | 1 . . . . Hauler 2 | . . 2 . . Recycler 1 | 1 . . . . Watcher 5 | . . 4 1 . Swarmer 9 | . 5 4 . . Grunt 10 | . 6 4 . . Sentry 5 | . . 2 3 . Scientist 1 | . . . . 1 Scrapper 2 | . . . . 2 Best Kill Streak 6 | 1 6 5 2 3 Combat Bots Only 6 | . 6 4 2 1 Max Kills in Single Turn 1 | 1 1 1 1 1 Gunslinging . | . . . . . Exploded . | . . . . . Melee . | . . . . . Uniques/NPCs Destroyed . | . . . . . Combat | -11 -10 -9 -9 -9 -------- Run | Yrd Mat Mat Sto Rec Hostile Shots Fired 158 | . 76 36 4 42 Missed 37 | . 19 10 3 5 Hits 121 | . 57 26 1 37 Projectile 121 | . 57 26 1 37 Critical Strikes 6 | . . 1 . 5 Actively Blocked 1 | . . . . 1 Damage Taken 1809 | . 549 315 15 930 Core 513 | . 99 71 15 328 Absorbed by Shields . | . . . . . Redirected to Shielding 46 | . . 13 . 33 Regen/Repaired (Parts) 55 | . . 55 . . Core Remaining (%) 80 | 100 60 . . . Volleys Fired 103 | 6 43 35 4 15 Largest 2 | 2 2 2 2 2 Hottest 136 | 40 40 136 133 133 Shots Fired 188 | 12 85 65 8 18 Gun 157 | 12 85 43 4 13 Cannon 30 | . . 22 4 4 Launcher 1 | . . . . 1 Special . | . . . . . Kinetic 109 | 12 85 11 . 1 Thermal 78 | . . 54 8 16 Explosive 1 | . . . . 1 Electromagnetic . | . . . . . Robot Hit Streak 13 | 9 8 13 10 8 Robot Miss Streak 7 | 1 3 7 3 3 Penetration Max . | . . . . . Secondary Targets 3 | . 3 . . . Max Gunslinging Chain 1 | . 1 . . . Shots Hit Robots 136 | 10 54 49 8 15 Core Hits 104 | 4 24 47 12 17 Critical Kills . | . . . . . Critical Parts Destroyed . | . . . . . Critical Strikes . | . . . . . Melee Attacks . | . . . . . Impact . | . . . . . Slashing . | . . . . . Piercing . | . . . . . Sneak Attacks . | . . . . . Combat Hostiles . | . . . . . Follow-up Attacks . | . . . . . Damage Inflicted 1838 | 102 494 740 156 346 Guns 1369 | 102 492 451 73 251 Cannons 412 | . . 289 83 40 Explosions 55 | . . . . 55 Melee . | . . . . . Ramming 2 | . 2 . . . Kinetic 711 | 102 492 99 . 18 Thermal 1070 | . . 641 156 273 Explosive 55 | . . . . 55 Electromagnetic . | . . . . . Impact . | . . . . . Slashing . | . . . . . Piercing . | . . . . . Highest Corruption 1 | . . 1 1 1 Average Corruption 1 | . . 1 1 1 Corruption Purged . | . . . . . Corruption Blocked . | . . . . . Effects 5 | . . 2 1 2 Message Errors 2 | . . 1 . 1 Matter Fused 1 | . . . 1 . Weapon Failures 2 | . . 1 . 1 Overload Shots . | . . . . . Overflow Damage . | . . . . . Projectiles . | . . . . . Explosions . | . . . . . Melee . | . . . . . Knockbacks . | . . . . . Impact . | . . . . . Kinetic . | . . . . . Secondary . | . . . . . Self-Inflicted Damage . | . . . . . Shots . | . . . . . Rammed 4 | . 3 . . 1 Targets Rammed 4 | . 3 . . 1 Kicked . | . . . . . Crushed . | . . . . . Highest Temperature 587 | . 12 571 89 587 Average Temperature 191 | . 6 180 43 436 Received Heat Transfer 844 | . 198 102 . 544 Effects 30 | . . 11 . 19 Shutdowns 4 | . . 2 . 2 Energy Bleed 1 | . . 1 . . Interference 4 | . . 3 . 1 Matter Decay 6 | . . 2 . 4 Short Circuit 2 | . . . . 2 Damage (minor) 4 | . . . . 4 Damage (major) 7 | . . 3 . 4 Damage (core) 2 | . . . . 2 Siege Activations . | . . . . . Martial Activations . | . . . . . Shielding Activations . | . . . . . Robots Disrupted . | . . . . . Combat Hostiles . | . . . . . Robots Corrupted . | . . . . . Combat Hostiles . | . . . . . Parts Fried . | . . . . . Impact Corruptions . | . . . . . Robots Melted . | . . . . . Combat Hostiles . | . . . . . Parts Melted 1 | . . 1 . . Heat Transferred 1431 | . . 953 238 240 Parts Sabotaged . | . . . . . Parts Stolen . | . . . . . Parts Stripped . | . . . . . Power Chain Reactions . | . . . . . Alert | -11 -10 -9 -9 -9 ------- Run | Yrd Mat Mat Sto Rec Maximum Alert Level 1 | . . . 1 . Low Security (%) 93 | 100 100 100 42 100 Level 1 6 | . . . 57 . Level 2 . | . . . . . Level 3 . | . . . . . Level 4 . | . . . . . Level 5 . | . . . . . High Security . | . . . . . Max Security . | . . . . . Peak Influence 261 | 5 130 106 261 101 Initial 82 | . . 21 39 82 Average 68 | . 69 49 180 57 Influence Increases 1012 | 10 326 362 282 32 Destroy 0b10 Robot/C 560 | . 220 200 120 20 Destroy 0b10 Robot/NC 50 | 10 . 35 5 . Destroy Leader 144 | . 40 52 52 . Allied During Kill 45 | . . . 41 4 Successful Hack 59 | . 21 15 18 5 Disable Machine 30 | . . 30 . . Destroy Structure 4 | . . . 1 3 Partial Spotted 60 | . 15 30 15 . Lose Combat Pursuer 60 | . 30 . 30 . Influence Decreases 1012 | 10 275 318 166 243 Entered New Map 215 | . . 30 56 129 Time Decay 713 | 10 255 278 90 80 Lost Part 64 | . 20 10 . 34 Lost Ally 20 | . . . 20 . Squads Dispatched 7 | . 3 2 2 . Investigation 5 | . 3 2 . . Extermination . | . . . . . Reinforcement . | . . . . . Assault . | . . . . . Garrison 2 | . . . 2 . Intercept . | . . . . . Searches Triggered . | . . . . . Construction Impeded . | . . . . . Haulers Reinforced . | . . . . . Active Scanning Responses . | . . . . . Cargo Convoy Interrupts . | . . . . . Stealth | -11 -10 -9 -9 -9 --------- Run | Yrd Mat Mat Sto Rec Distress Signals 2 | . . 1 1 . Communications Jammed . | . . . . . Distress Signals . | . . . . . Times Spotted 42 | . 17 15 7 3 Peak Tracking Total 5 | . 5 4 3 5 Tactical Retreats 2 | . 1 . 1 . Traps | -11 -10 -9 -9 -9 ------- Run | Yrd Mat Mat Sto Rec Traps Triggered 1 | . 1 . . . Indirectly . | . . . . . Trap Hack Attempts . | . . . . . Triggered . | . . . . . Disarmed . | . . . . . Reprogrammed . | . . . . . Reused . | . . . . . Traps Extracted . | . . . . . Installed . | . . . . . Triggered . | . . . . . Machines | -11 -10 -9 -9 -9 ---------- Run | Yrd Mat Mat Sto Rec Machines Disabled 3 | . . 2 . 1 Max in Single Turn 1 | . . 1 . 1 Machines Repaired . | . . . . . Machines Dismantled . | . . . . . Machines Sabotaged . | . . . . . Overloaded Fab Kills . | . . . . . Hacking | -11 -10 -9 -9 -9 --------- Run | Yrd Mat Mat Sto Rec Machines Accessed 17 | . 3 6 3 5 Terminals 15 | . 3 5 3 4 Fabricators . | . . . . . Repair Stations 1 | . . 1 . . Recycling Units . | . . . . . Scanalyzers . | . . . . . Garrison Access . | . . . . . Total Hacks 45 | . 8 21 6 10 Successful 21 | . 4 9 2 6 Failed 24 | . 4 12 4 4 Catastrophic 2 | . 1 1 . . Database Lockouts . | . . . . . Manual 29 | . 8 12 4 5 Terminals 37 | . 8 15 6 8 Fabricators . | . . . . . Repair Stations 6 | . . 6 . . Recycling Units . | . . . . . Scanalyzers . | . . . . . Garrison Access . | . . . . . Terminal Hacks 12 | . 2 2 2 6 Level Access Points 1 | . 1 . . . Branch Access Points 2 | . 1 1 . . Dispatch Records 1 | . . . 1 . Zone Layout 6 | . . 1 1 4 Release Object 2 | . . . . 2 Fabricator Hacks . | . . . . . Repair Station Hacks 6 | . . 6 . . Scan Component 3 | . . 3 . . Repair 3 | . . 3 . . Recycling Unit Hacks . | . . . . . Scanalyzer . | . . . . . Garrison Access Hacks . | . . . . . Unauthorized Hacks 3 | . 2 1 . . Terminals 3 | . 2 1 . . Botnet 3 | . 2 1 . . Fabricators . | . . . . . Repair Stations . | . . . . . Recycling Units . | . . . . . Scanalyzers . | . . . . . Garrison Access . | . . . . . Data Cores Recovered . | . . . . . Used . | . . . . . Hacking Detections 12 | . 2 6 1 3 Full Trace Events 5 | . 2 2 1 . Feedback Events 1 | . . 1 . . Corruption 1 | . . 1 . . Feedback Blocked . | . . . . . Robot Schematics Acquired . | . . . . . Robots Built . | . . . . . Authchips . | . . . . . Time . | . . . . . Total Robot Build Rating . | . . . . . Part Schematics Acquired . | . . . . . Parts Built . | . . . . . Authchips . | . . . . . Time . | . . . . . Total Part Build Rating . | . . . . . Parts Repaired 3 | . . 3 . . Time 109 | . . 109 . . Parts Recycled . | . . . . . Recycled Matter . | . . . . . Retrieved Matter . | . . . . . Retrieved Components . | . . . . . Parts Scanalyzed . | . . . . . Part Schematics Acquired . | . . . . . Parts Damaged . | . . . . . Bothacking | -11 -10 -9 -9 -9 ------------ Run | Yrd Mat Mat Sto Rec Used RIF Installer . | . . . . . Robots Hacked . | . . . . . Non-combat . | . . . . . Combat . | . . . . . Robot Hacks Applied . | . . . . . Relay Couplers Released . | . . . . . Fabnet Peak Effective % . | . . . . . Robots Rewired . | . . . . . Allies Hacked . | . . . . . Hacks Repelled . | . . . . . Allies | -11 -10 -9 -9 -9 -------- Run | Yrd Mat Mat Sto Rec Total Allies 10 | . . . 10 . Largest Group 10 | . . . 10 9 Highest-Rated Group 88 | . . . 88 80 Highest-Rated Ally 16 | . . . 16 16 Total Orders . | . . . . . Ally Attacks 19 | . . . 16 3 Total Damage 120 | . . . 84 36 Kills 4 | . . . 3 1 Allies Corrupted . | . . . . . Allies Melted . | . . . . . Intel | -11 -10 -9 -9 -9 ------- Run | Yrd Mat Mat Sto Rec Active Infowar (turns) 1101 | . 132 638 190 141 Seismic 1101 | . 132 638 190 141 Robot Analysis Total . | . . . . . Derelict Logs Recovered . | . . . . . Drone Launches . | . . . . . Drone Recoveries . | . . . . . Exploration | -11 -10 -9 -9 -9 ------------- Run | Yrd Mat Mat Sto Rec Turns Passed 1729 | 110 564 664 190 201 Spaces Moved 1546 | 61 299 519 146 521 Core 34 | 18 . . . 16 Treads 253 | 43 210 . . . Legs . | . . . . . Wheels . | . . . . . Hover . | . . . . . Flight 1259 | . 89 519 146 505 Fastest Speed 26 | 50 37 26 26 26 Average Speed 52 | 127 130 30 26 27 Slowest Speed 275 | 160 250 275 26 100 Overloaded Moves . | . . . . . Propulsion Burnouts . | . . . . . Robots Hopped 5 | . 1 1 . 3 Potential Cave-ins . | . . . . . Cave-ins Triggered . | . . . . . Exploration Rate (%) 42 | 4 47 46 25 90 Regions Visited 4 Branch Regions 2 Pre-discovered Areas . | . . . . . Known Exits Taken 2 | . 1 1 . . Unknown Exits Taken 2 | 1 . . 1 . Scrap Searched . | . . . . . Spaces Dug . | . . . . . Terrain Destroyed 2 | . . . . 2 Melee . | . . . . . Projectile . | . . . . . AOE 2 | . . . . 2 Terrain Rammed . | . . . . . Walls Destroyed . | . . . . . Machines Disabled . | . . . . . Actions | -11 -10 -9 -9 -9 --------- Run | Yrd Mat Mat Sto Rec Total 2297 | 83 401 961 289 563 Wait 517 | . 4 359 138 16 Move 1532 | 60 296 516 145 515 Hop 5 | . 1 1 . 3 Pick Up 48 | 11 17 15 1 4 Fast Attach 13 | . 4 9 . . Attach 18 | 6 5 3 . 4 Detach . | . . . . . Swap 14 | . 8 5 . 1 Drop 43 | . 20 18 1 4 Fire 103 | 6 43 35 4 15 Melee . | . . . . . Ram 1 | . . . . 1 Kick . | . . . . . Crush 3 | . 3 . . . Escape Stasis . | . . . . . Rewire . | . . . . . Trap . | . . . . . Miscellaneous . | . . . . . Route ------- -11/Scrapyard -10/Materials (discovered 4 exits: *Mat x3 / *Min) -9/Materials (discovered 2 exits: *Min / *Sto) -9/Storage -9/Recycling (discovered 1 exit: [*Fac]) History --------- Turn | Location | Event 4 | -11/Scrapyard | Discovered new exit (range 13) 111 | -11/Scrapyard | Entered Materials 124 | -10/Materials | Identified exit to Mines 304 | -10/Materials | Build established: Mutant 473 | -10/Materials | Identified exit to Materials 675 | -10/Materials | Entered another Materials area 675 | -9/Materials | Evolved 2 slots: Propulsion x2 1046 | -9/Materials | Build established: Sprinter 1173 | -9/Materials | Repaired VTOL Module 1225 | -9/Materials | Repaired Imp. Flight Unit 1253 | -9/Materials | Repaired Seismic Detector 1267 | -9/Materials | Discovered new exit (range 9) 1297 | -9/Materials | Identified exit to Mines 1297 | -9/Materials | Identified exit to Storage 1339 | -9/Materials | Entered Storage 1385 | -9/Storage | Garrison activated, responded to threat 1404 | -9/Storage | Assisted by bots powering up and referring to "LRC-V3" 1428 | -9/Storage | Discovered new exit (range 8) 1511 | -9/Storage | Used back door to open Recycling access 1529 | -9/Storage | Entered Recycling 1529 | -9/Recycling | Accompanied by 9 allies 1644 | -9/Recycling | Discovered new exit (range 12) 1664 | -9/Recycling | Scanned before Scraplab entrance 1668 | -9/Recycling | Entered Scraplab 1676 | -9/Recycling | Angered Scraplab inhabitants 1676 | -9/Recycling | Found Prototype Device 1697 | -9/Recycling | Core integrity fell below 50% 1724 | -9/Recycling | Core integrity fell below 20% 1730 | -9/Recycling | Destroyed by 8R-K6U(j) with Overtuned Pulse Rifle Last Messages --------------- 01712_ Spread Laser destroyed. 01713_ Acquired Ovr. Pulse Rifle. 01716_ Overheating: Matter decay (-24). 01719_ Broken VTOL Module destroyed. Prototype Device integrity failing. 01722_ Ovr. Pulse Rifle destroyed. 01722_ Critical hit (Burn: +50). 01723_ Overheating: Broken VTOL Module damaged (-4). 01723_ Slammed into 8R-K6U(j). 01724_ Overheating: Core damaged (-60). 01724_ 8R-K6U(j) cannibalizes Lgt. Deuterium Engine to repair Lgt. Deuterium Engine. 01725_ Broken VTOL Module destroyed. 01727_ 8R-K6U(j) cannibalizes Mak. Microdissipator Network to repair Mak. Microdissipator Network. 01727_ Critical hit (Burn: +50). 01728_ Acquired Autogun. Prototype Device integrity failing. Map ----- +----------------------------------------------------+ | # T"#????????????????? | | # ""#????????????????? | | # #????????????????? | | ###########????????????????? | | #??????????????????????????? | | #??????????????????????????? | | #??#####???????????????????? | | #?# ???????????????????? | | #?# ???????????????????? | | #?# ???????????????????? | | #?# ???????????????????? | | #?# ???????????????????? | | #?# #??????????????????? | | #?# #???######?????????? | | #?# #???# #?????????? | | #?# #???# #??###????? | | ### ##### #### ##???? | | ## # + # #???? | | #?# # ### ##### #???? | | #?# # #?# #???# #???? | | #?# + #?# #???# ???? | | #?# # #?######???#= ???? | | #?####### #??????##### ####? | | #???????# #??????#" [% % "#? | | #########+##?????# &!=! ""#? | | # #?????#" *!@"#? | | # #?????#" c "#? | | # #?????#"& *"#? | | # #?????#" ""#? | | + #?????#"X "#? | | # #?????#" ###? | | # ##########?????# "" j#"#? | | ###??????????????# """! #? | | #????????????????##########? | | ??????????????????????????? | | ??????????????????????????? | | ??????????????????????????? | | ??????????????????????????? | | ??????????????????????????? | | ##??????????????????????????? | | ????????????????????????????? | | ????????????????????????????? | | ????????????????????????????? | | ????????????????????????????? | | ????????????????????????????? | | ????????????????????????????? | | ????????????????????????????? | | ????????????????????????????? | | ????????????????????????????? | | ????????????????????????????? | +----------------------------------------------------+ Best States ------------- Heat Dissipation 35 Energy Generation 14 Energy Capacity 280 Matter Stores 300 Matter Capacity 300 Sight Range 16 Terrain Scan Density 10 Armor Coverage 150 Propulsion Shielding 33 Evasion (%) 64 Recoil Reduction 2 Item Schematics ----------------- None Robot Schematics ------------------ None Fabricated ------------ Nothing Repaired ---------- VTOL Module | 36% | -9/Materials Imp. Flight Unit | 35% | -9/Materials Seismic Detector | 35% | -9/Materials Alien Tech Used ----------------- None Achievements -------------- None Challenges ------------ None Game ------ Seed HeavyMissileSuperbattery Manual? 0 Play Time 00:23:04 Cumulative 51.6 hours Start 2025.07.24 @ 16:28:49 End 2025.07.25 @ 05:23:36 Sessions 2 Manual Loads 0 Difficulty Rogue Special Mode None Game No. 129 Rogue 129 Adventurer 0 Explorer 0 Win Type - Total 0 Types 0/0/0/0/0/0/0/0/0/0 Lore% 40 Gallery% 40 Achievement% 31 Wizard Run 0 Options --------- Layout 1 ASCII 0 Keyboard 0 Movement Mouse Keybinds 0 Fullscreen 1 Font 24/Smallcaps Map View 50x35 Zoom Use 0% Tactical HUD 1 Map Filters NONE Filters NONE Steam 1 RUN: 982d00b8-0e0f-4c31-86f8-81501f56e6e5